bitfinex/quotes_SOLUSD_20240808
["timestamp","ask_amount","ask_price","bid_price","bid_amount"]
[1723080037325,1.69269243,147.71,147.58,5.63203125]
[1723080037526,6.0075,147.72,147.59,65.0]
[1723080037744,6.0075,147.72,147.64,42.7]
[1723080038148,6.0075,147.72,147.6,43.86085424]
[1723080038325,6.0075,147.72,147.61,46.16101974]
[1723080038529,6.0075,147.72,147.62,0.17]
[1723080038728,6.0075,147.72,147.63,0.99030273]
[1723080038922,6.0075,147.72,147.64,0.17]
[1723080039148,6.0075,147.72,147.65,0.99030464]
[1723080039351,5.5075,147.72,147.65,0.99030464]
[1723080039560,5.5075,147.72,147.6,42.7]
[1723080039769,1.69301848,147.71,147.56,42.7]
[1723080039929,5.5075,147.72,147.56,42.7]
[1723080040258,5.5075,147.72,147.59,0.99138598]
[1723080040430,1.86290187,147.71,147.56,42.7]
[1723080040626,1.69319156,147.7,147.56,62.7]
[1723080040825,5.5075,147.72,147.56,42.7]
[1723080041026,5.5075,147.72,147.57,20.0]
[1723080041737,5.5075,147.72,147.58,26.01203125]
[1723080041932,5.5075,147.72,147.64,42.7]
[1723080042142,5.5075,147.72,147.65,66.3297133]
[1723080042734,5.5075,147.72,147.64,42.7]
[1723080043056,5.5075,147.72,147.59,20.99040251]
[1723080043264,5.5075,147.72,147.64,42.7]
[1723080043630,5.5075,147.72,147.61,0.9911326]
[1723080043828,5.5075,147.72,147.6,42.7]
[1723080043829,5.5075,147.72,147.64,42.7]
[1723080045233,5.5075,147.72,147.65,0.99066385]
[1723080045731,5.5075,147.72,147.63,59.978099]
[1723080045732,5.5075,147.72,147.63,42.7]
[1723080046540,5.5075,147.72,147.58,5.63203125]
[1723080046744,46.86277889,147.71,147.58,5.63203125]
[1723080046941,46.86277889,147.71,147.53,17.278099]
[1723080046942,1.8635811,147.7,147.53,17.278099]
[1723080047140,1.8635811,147.7,147.5,0.99301612]
[1723080047141,6.6432,147.62,147.49,42.7]
[1723080047337,16.649,147.61,147.49,42.7]
[1723080047531,1.69443384,147.6,147.49,42.7]
[1723080047759,1.69443384,147.6,147.42,112.544704]
[1723080047973,0.34,147.59,147.42,69.844704]
[1723080048293,16.649,147.61,147.42,69.844704]
[1723080048294,16.649,147.61,147.46,42.7]
[1723080048455,16.649,147.61,147.47,0.99451953]
[1723080048666,16.649,147.61,147.5,42.7]
[1723080048862,16.649,147.61,147.5,43.69434109]
[1723080049049,16.649,147.61,147.5,42.7]
[1723080049361,16.649,147.61,147.51,0.99491887]
[1723080049575,16.649,147.61,147.5,42.7]
[1723080050368,16.649,147.61,147.5,43.69452651]
[1723080050557,6.6432,147.62,147.51,45.0]
[1723080050747,6.6432,147.62,147.54,42.7]
[1723080051269,6.6432,147.62,147.55,0.99348122]
[1723080051466,6.6432,147.62,147.54,42.7]
[1723080051757,6.6432,147.62,147.5,0.99361807]
[1723080051967,6.6432,147.62,147.49,43.69440743]
[1723080052275,46.69419144,147.61,147.45,0.99448094]
[1723080052479,1.86469594,147.6,147.42,42.7]
[1723080052703,16.4664,147.55,147.42,42.7]
[1723080052979,6.1487,147.53,147.35,42.7]
[1723080053182,45.34,147.52,147.36,0.99836314]
[1723080053367,1.6959091,147.51,147.35,42.7]
[1723080053575,0.34,147.5,147.35,42.7]
[1723080053778,6.1487,147.53,147.39,42.7]
[1723080053947,45.34,147.52,147.39,42.7]
[1723080054253,1.69563163,147.52,147.39,42.7]
[1723080054455,1.86557976,147.51,147.39,42.7]
[1723080055270,0.17,147.5,147.35,42.7]
[1723080055483,1.69598208,147.49,147.35,42.7]
[1723080055796,1.86585969,147.5,147.35,42.7]
[1723080056079,1.69585969,147.48,147.35,42.7]
[1723080056518,0.34,147.47,147.3,27.166532]
[1723080056792,6.2789,147.46,147.32,2.717691]
[1723080056956,0.17,147.45,147.32,45.417691]
[1723080057165,47.03657822,147.45,147.32,45.417691]
[1723080057798,15.4826,147.44,147.24,10.13093669]
[1723080058000,6.5673,147.4,147.16,42.7]
[1723080058309,15.4826,147.31,147.16,42.7]
[1723080058479,0.17,147.3,147.17,1.00446003]
[1723080058789,0.17,147.3,147.16,42.7]
[1723080058790,45.17,147.3,147.16,49.8002335]
[1723080058965,0.17,147.3,147.16,49.8002335]
[1723080059169,17.1806475,147.31,147.2,42.7]
[1723080059170,15.4826,147.31,147.2,42.7]
[1723080059375,17.18049364,147.31,147.2,42.7]
[1723080059561,45.34,147.3,147.2,42.7]
[1723080059768,1.6982029,147.29,147.2,42.7]
[1723080060059,15.4826,147.31,147.16,7.1002335]
[1723080060289,45.0,147.3,147.16,8.10365358]
[1723080060587,15.4826,147.31,147.16,8.10365358]
[1723080060588,1.69819393,147.29,147.16,7.1002335]
[1723080060899,0.34,147.28,147.16,7.1002335]
[1723080061204,1.69835349,147.27,147.16,7.1002335]
[1723080061386,0.17,147.26,147.16,7.1002335]
[1723080061706,1.69839136,147.26,147.16,7.1002335]
[1723080061866,1.69839136,147.28,147.16,7.1002335]
[1723080062062,15.4826,147.31,147.16,7.1002335]
[1723080062286,1.69836436,147.3,147.16,7.1002335]
[1723080062881,0.34,147.29,147.16,7.1002335]
[1723080063068,1.69841962,147.3,147.16,7.1002335]
[1723080063272,1.69824137,147.29,147.16,7.1002335]
[1723080063787,15.4826,147.31,147.15,1.00432791]
[1723080063967,15.4826,147.31,147.14,49.80130772]
[1723080064165,15.4826,147.31,147.15,1.00432791]
[1723080064614,6.5673,147.32,147.27,42.7]
[1723080065394,6.2657,147.39,147.27,42.7]
[1723080065603,6.2657,147.39,147.31,42.7]
[1723080066095,6.2657,147.39,147.32,1.00019437]
[1723080066286,6.2657,147.39,147.35,42.7]
[1723080067180,6.2657,147.39,147.28,42.7]
[1723080067517,6.2657,147.39,147.29,21.00035143]
[1723080067682,6.2657,147.39,147.33,42.7]
[1723080068074,6.4299,147.46,147.37,42.7]
[1723080068681,8.12594345,147.46,147.35,42.7]
[1723080068871,1.69626104,147.45,147.35,42.7]
[1723080069276,1.69626104,147.45,147.3,45.99944798]
[1723080069503,0.17,147.44,147.28,42.7]
[1723080069704,1.37484563,147.44,147.32,42.7]
[1723080069876,1.86642966,147.43,147.32,42.7]
[1723080070077,0.17,147.42,147.28,42.7]
[1723080070296,1.86693832,147.42,147.28,42.7]
[1723080070479,1.86693832,147.42,147.21,42.7]
[1723080070480,15.9656,147.37,147.21,42.7]
[1723080070673,1.69778281,147.36,147.21,42.7]
[1723080070877,0.34,147.36,147.22,1.00240433]
[1723080071083,15.9656,147.37,147.26,42.7]
[1723080071383,6.2005,147.4,147.3,42.7]
[1723080071584,6.2005,147.4,147.34,42.7]
[1723080072403,6.2877,147.48,147.38,42.7]
[1723080072605,6.2877,147.48,147.39,0.99764755]
[1723080072826,6.2877,147.48,147.38,42.7]
[1723080073405,1.69586525,147.47,147.38,42.7]
[1723080073626,1.69586525,147.47,147.35,42.7]
[1723080073936,6.2877,147.48,147.36,20.0]
[1723080074136,6.2877,147.48,147.36,41.37888637]
[1723080074305,6.2877,147.48,147.41,42.7]
[1723080074507,6.2877,147.48,147.42,20.99697577]
[1723080074803,6.2877,147.48,147.42,20.0]
[1723080075002,0.2608506,147.51,147.45,42.7]
[1723080075202,0.2608506,147.51,147.46,20.99548804]
[1723080075620,0.2608506,147.51,147.46,20.99608488]
[1723080075806,0.2608506,147.51,147.46,20.0]
[1723080076829,0.2608506,147.51,147.47,0.99639717]
[1723080077021,0.2608506,147.51,147.49,42.7]
[1723080077223,0.2608506,147.51,147.5,20.0]
[1723080077916,0.2608506,147.51,147.43,0.99516182]
[1723080078129,0.2608506,147.51,147.46,42.7]
[1723080078307,0.2608506,147.51,147.47,20.99515137]
[1723080078504,0.2608506,147.51,147.5,42.7]
[1723080078706,6.0514,147.56,147.5,62.7]
[1723080078934,6.2104,147.63,147.54,42.7]
[1723080079132,6.2104,147.63,147.55,20.99279709]
[1723080079443,6.2104,147.63,147.55,20.0]
[1723080079652,0.04074288,147.62,147.55,20.0]
[1723080080448,1.734676,147.62,147.49,42.7]
[1723080080864,0.34,147.61,147.43,0.99543774]
[1723080081025,1.73535439,147.6,147.46,6.2104]
[1723080081221,0.17,147.59,147.46,6.2104]
[1723080081442,8.81058578,147.59,147.42,42.7]
[1723080081649,6.7764,147.57,147.42,42.7]
[1723080081869,46.86541003,147.56,147.36,27.155533]
[1723080082154,20.17,147.55,147.36,0.99772396]
[1723080082364,20.17,147.55,147.3,11.80388666]
[1723080082365,6.2104,147.53,147.38,42.7]
[1723080082522,0.17,147.52,147.38,42.7]
[1723080082726,46.86548168,147.52,147.38,42.7]
[1723080082927,6.2104,147.53,147.39,0.99785885]
[1723080083141,6.2104,147.53,147.39,0.99673803]
[1723080083359,0.04074288,147.52,147.42,42.7]
[1723080083537,0.04074288,147.52,147.46,42.7]
[1723080083743,0.04074288,147.52,147.47,0.99524707]
[1723080083940,0.04074288,147.52,147.46,42.7]
[1723080084135,0.04074288,147.52,147.46,43.69498392]
[1723080084345,0.04074288,147.52,147.46,42.7]
[1723080084567,0.04074288,147.52,147.42,42.7]
[1723080084735,0.04074288,147.52,147.43,0.99675366]
[1723080085129,0.04074288,147.52,147.43,41.37675366]
[1723080085334,0.04074288,147.52,147.5,42.7]
[1723080085832,0.04074288,147.52,147.51,20.0]
[1723080086028,0.04074288,147.52,147.46,42.7]
[1723080086232,0.04074288,147.52,147.47,66.16537196]
[1723080086455,0.04074288,147.52,147.47,108.86537196]
[1723080086952,0.04074288,147.52,147.51,42.7]
[1723080087169,6.1535,147.6,147.51,87.7]
[1723080087382,6.1535,147.6,147.52,20.99378413]
[1723080087681,6.1535,147.6,147.52,20.99420255]
[1723080089073,6.1535,147.6,147.51,42.7]
[1723080089290,6.1535,147.6,147.49,15.4948]
[1723080089575,0.17,147.59,147.47,42.7]
[1723080089766,0.17,147.59,147.47,48.8535]
[1723080090073,6.776,147.58,147.41,42.49]
[1723080090369,66.86513208,147.57,147.41,42.49]
[1723080090574,15.0364,147.54,147.41,42.49]
[1723080090902,15.0364,147.54,147.33,20.0]
[1723080090903,6.0526,147.52,147.33,27.160928]
[1723080091090,67.03539671,147.53,147.31,42.49]
[1723080091091,6.1113,147.5,147.31,42.49]
[1723080091387,6.7844,147.4,147.27,7.09504831]
[1723080091553,7.80870957,147.39,147.21,42.49]
[1723080091896,6.1113,147.39,147.25,42.49]
[1723080092178,6.1113,147.39,147.29,42.49]
[1723080092470,6.1113,147.39,147.33,42.49]
[1723080092675,6.1113,147.39,147.34,20.0]
[1723080092878,6.0348,147.47,147.37,42.49]
[1723080093078,6.0348,147.47,147.41,42.49]
[1723080093649,6.0348,147.47,147.42,20.0]
[1723080093973,6.0348,147.47,147.35,42.49]
[1723080094180,6.0348,147.47,147.36,65.99813503]
[1723080094355,6.0348,147.47,147.37,0.17]
[1723080094552,6.0348,147.47,147.39,42.49]
[1723080094759,6.0348,147.47,147.4,20.0]
[1723080095157,6.0348,147.47,147.36,20.0]
[1723080095397,6.0348,147.47,147.36,20.99810689]
[1723080095695,6.0348,147.47,147.36,40.99810689]
[1723080095984,6.0348,147.47,147.36,20.99810689]
[1723080096477,6.3095,147.55,147.43,42.49]
[1723080096685,6.3095,147.55,147.44,66.16540401]
[1723080097055,6.3095,147.55,147.44,86.54540401]
[1723080097664,6.3095,147.55,147.47,62.87]
[1723080097869,6.3095,147.55,147.48,66.16455102]
[1723080098057,6.3095,147.55,147.48,20.0]
[1723080098658,6.3095,147.55,147.49,0.99509114]
[1723080099359,6.3095,147.55,147.48,20.0]
[1723080100260,6.3095,147.55,147.49,0.99470008]
[1723080100588,6.3095,147.55,147.48,20.0]
[1723080100963,6.3095,147.55,147.51,42.49]
[1723080101194,6.3095,147.55,147.52,20.0]
[1723080102364,1.6940865,147.64,147.54,42.49]
[1723080102568,0.8766705,147.67,147.6,42.49]
[1723080102797,6.1721,147.72,147.61,21.16062716]
[1723080103093,6.1721,147.72,147.61,21.16042317]
[1723080103301,6.1721,147.72,147.62,45.0]
[1723080103455,6.1721,147.72,147.63,0.99065327]
[1723080103659,6.1721,147.72,147.64,42.49]
[1723080103871,6.1721,147.72,147.65,66.32982038]
[1723080104965,6.1721,147.72,147.65,20.0]
[1723080105363,6.1721,147.72,147.58,0.99068279]
[1723080105601,6.1721,147.72,147.59,43.48186493]
[1723080105964,6.1721,147.72,147.67,42.49]
[1723080106167,6.1721,147.72,147.68,0.98949826]
[1723080106368,15.0067,147.76,147.67,42.49]
[1723080106681,15.0067,147.76,147.68,0.98917292]
[1723080106891,15.0067,147.76,147.68,45.98917292]
[1723080107088,6.0704,147.79,147.71,42.49]
[1723080107294,6.0704,147.79,147.72,20.0]
[1723080108292,6.0704,147.79,147.67,42.49]
[1723080108467,6.0704,147.79,147.68,0.98973844]
[1723080109594,6.0704,147.79,147.71,42.49]
[1723080109805,6.0704,147.79,147.72,20.98834939]
[1723080110305,6.0704,147.79,147.75,42.49]
[1723080110597,6.0704,147.79,147.72,20.0]
[1723080110782,6.0704,147.79,147.74,0.98810787]
[1723080111178,6.0704,147.79,147.74,20.98810787]
[1723080111588,6.0704,147.79,147.74,20.98778438]
[1723080111769,6.0704,147.79,147.75,20.0]
[1723080111969,6.0704,147.79,147.76,0.98767033]
[1723080112167,1.4937667,147.9,147.78,42.49]
[1723080112479,1.4937667,147.9,147.79,21.32757598]
[1723080112798,1.4937667,147.9,147.86,42.49]
[1723080113281,1.4937667,147.9,147.87,0.98583193]
[1723080113605,1.4937667,147.9,147.87,20.98583193]
[1723080113977,6.1196,147.97,147.87,20.98583193]
[1723080114175,0.8766705,147.98,147.92,42.49]
[1723080114502,0.8766705,147.98,147.93,20.98330091]
[1723080114697,0.8766705,147.98,147.93,20.0]
[1723080115175,0.8766705,147.98,147.93,20.98314479]
[1723080115502,0.8766705,147.98,147.93,20.98334528]
[1723080115679,0.8766705,147.98,147.93,20.0]
[1723080116203,0.8766705,147.98,147.93,20.98268551]
[1723080116577,0.8766705,147.98,147.93,20.0]
[1723080116971,9.3159762,148.0,147.96,42.49]
[1723080117179,6.0699,148.09,147.97,20.98096075]
[1723080118010,6.0699,148.09,147.97,20.98168709]
[1723080118513,5.5699,148.09,147.94,42.49]
[1723080118805,5.5699,148.09,147.91,42.49]
[1723080118806,28.4427988,148.08,147.91,42.49]
[1723080119104,5.5699,148.09,147.92,0.98311071]
[1723080119105,5.641718,148.09,147.92,0.98311071]
[1723080119304,5.641718,148.09,147.93,0.98177986]
[1723080120294,5.641718,148.09,147.94,0.34]
[1723080120490,5.641718,148.09,147.98,42.49]
[1723080120685,0.071818,148.09,147.99,20.98027285]
[1723080121385,6.3091,148.08,147.99,20.98027285]
[1723080121913,6.3091,148.08,147.99,20.0]
[1723080122292,0.071818,148.09,147.98,42.49]
[1723080122493,0.071818,148.09,148.0,0.98176313]
[1723080122696,0.071818,148.09,147.98,43.47026142]
[1723080122905,0.071818,148.09,147.99,0.98059276]
[1723080123106,0.071818,148.09,148.0,0.98043537]
[1723080123308,0.071818,148.09,148.0,0.98107479]
[1723080123513,0.071818,148.09,148.01,0.98046815]
[1723080123692,0.071818,148.09,147.99,20.97967385]
[1723080124020,0.071818,148.09,148.0,42.49]
[1723080124193,0.071818,148.09,148.01,20.98010769]
[1723080124385,0.071818,148.09,148.04,42.49]
[1723080124704,0.071818,148.09,148.08,42.49]
[1723080124905,0.071818,148.09,148.08,63.46819638]
[1723080125208,0.8661455,148.14,148.08,63.46851171]
[1723080125386,6.6315,148.25,148.13,42.49]
[1723080125724,0.8661455,148.3,148.13,42.49]
[1723080125725,0.8661455,148.3,148.21,42.49]
[1723080126010,16.0393,148.42,148.29,42.49]
[1723080126386,36.4193,148.42,148.22,21.06940491]
[1723080126580,6.2679,148.4,148.18,42.49]
[1723080126787,6.2679,148.4,148.22,42.49]
[1723080127119,1.68558236,148.39,148.22,42.49]
[1723080127288,6.2679,148.4,148.26,42.49]
[1723080127610,0.8661455,148.45,148.3,42.49]
[1723080127780,0.8661455,148.45,148.31,0.97157076]
[1723080127987,22.9439,148.43,148.17,9.19403886]
[1723080128210,22.9439,148.43,148.09,20.0]
[1723080128211,22.9439,148.43,148.28,42.49]
[1723080128439,22.9439,148.43,148.21,0.97313425]
[1723080128601,0.8661455,148.45,148.13,0.97497788]
[1723080128602,6.5192,148.3,148.13,0.97497788]
[1723080128909,6.5192,148.3,148.15,42.49]
[1723080129091,6.0192,148.3,148.16,0.97605564]
[1723080129294,6.0192,148.3,148.19,42.49]
[1723080129496,12.7624,148.3,148.13,0.97600618]
[1723080129690,6.0192,148.3,148.13,0.97600618]
[1723080130327,45.17,148.29,148.13,0.97600618]
[1723080130492,6.7461,148.24,148.12,42.49]
[1723080130692,0.17,148.25,148.09,42.49]
[1723080130890,6.7468,148.22,148.09,42.49]
[1723080131096,6.7477,148.2,148.06,0.97773015]
[1723080131298,0.17,148.21,148.06,0.97913114]
[1723080131505,16.5422,148.28,148.06,0.97913114]
[1723080131811,65.34,148.27,148.06,0.97913114]
[1723080132015,65.34,148.27,148.06,0.97865438]
[1723080132308,6.6287,148.26,148.06,0.97865438]
[1723080132515,45.34,148.25,148.06,0.97865438]
[1723080133217,46.68765247,148.25,148.06,0.97865438]
[1723080133388,51.7454,148.25,148.06,0.97865438]
[1723080133797,6.6287,148.26,148.08,20.38]
[1723080134112,6.6287,148.26,148.13,20.38]
[1723080134326,6.6131,148.35,148.2,42.49]
[1723080134619,6.6131,148.35,148.24,42.49]
[1723080134912,6.6131,148.35,148.25,0.97417912]
[1723080135217,1.68595343,148.34,148.2,20.0]
[1723080135411,13.354,148.35,148.21,0.97470972]
[1723080135727,6.6131,148.35,148.21,0.97470972]
[1723080135885,6.6131,148.35,148.21,45.97470972]
[1723080136213,6.6131,148.35,148.22,20.0]
[1723080136424,6.6131,148.35,148.23,1.14391575]
[1723080136718,6.6131,148.35,148.22,65.97367862]
[1723080136917,6.6131,148.35,148.19,42.49]
[1723080136918,6.6131,148.35,148.2,0.97436212]
[1723080137219,6.7433,148.3,148.15,0.9750212]
[1723080137392,6.6131,148.35,148.16,42.49]
[1723080137592,6.6131,148.35,148.17,0.97462344]
[1723080137818,1.68597915,148.34,148.16,49.2333]
[1723080137996,8.42747915,148.34,148.16,6.7433]
[1723080138314,1.68597915,148.34,148.17,0.97530127]
[1723080138819,6.6131,148.35,148.18,0.34]
[1723080139030,6.6131,148.35,148.19,43.46474103]
[1723080139332,6.6131,148.35,148.24,20.0]
[1723080139493,6.6131,148.35,148.23,42.49]
[1723080139494,16.2493,148.39,148.27,42.49]
[1723080139706,16.2493,148.39,148.28,21.14205933]
[1723080140029,16.2493,148.39,148.28,65.97205933]
[1723080140190,16.2493,148.39,148.28,20.97205933]
[1723080140392,6.5853,148.42,148.29,45.34]
[1723080140619,6.5853,148.42,148.31,42.49]
[1723080140820,6.5853,148.42,148.32,66.31095654]
[1723080140989,6.5853,148.42,148.33,0.97104936]
[1723080141192,0.8661455,148.45,148.33,0.97104936]
[1723080141193,0.8661455,148.45,148.35,42.49]
[1723080141426,0.8661455,148.45,148.39,42.49]
[1723080141595,0.8661455,148.45,148.4,21.30806225]
[1723080141796,0.8661455,148.45,148.41,45.0]
[1723080142025,6.168,148.59,148.46,20.0]
[1723080142193,0.8661455,148.6,148.49,42.49]
[1723080142388,0.8661455,148.6,148.5,21.30556772]
[1723080142621,0.8661455,148.6,148.5,0.96556772]
[1723080142916,4.5341455,148.67,148.51,20.17]
[1723080143123,20.0,148.82,148.51,20.17]
[1723080143124,0.5500722,148.75,148.57,42.49]
[1723080143344,15.1964,148.79,148.6,20.0]
[1723080143623,15.1964,148.79,148.61,21.34461743]
[1723080143793,6.7234,148.74,148.58,1.34520664]
[1723080143992,6.7233,148.74,148.57,0.17]
[1723080144192,10.54095245,148.75,148.57,1.34531802]
[1723080144393,8.40386948,148.76,148.58,1.34517558]
[1723080144593,10.54177301,148.79,148.59,21.51514385]
[1723080144828,42.49,148.86,148.61,20.0]
[1723080145020,16.5548,148.88,148.61,1.34477125]
[1723080145021,10.53787083,148.78,148.61,1.34477125]
[1723080145233,53.02787083,148.78,148.57,21.34503624]
[1723080145396,42.49,148.82,148.52,1.34571387]
[1723080145397,16.5548,148.73,148.52,1.34571387]
[1723080145597,16.5548,148.73,148.53,62.49]
[1723080145915,1.68162789,148.81,148.57,62.49]
[1723080146225,10.54360788,148.78,148.61,42.49]
[1723080146402,10.54360788,148.78,148.62,1.34482031]
[1723080146803,10.54360788,148.78,148.63,0.17]
[1723080147009,10.54360788,148.78,148.64,1.3446544]
[1723080147211,6.3812,148.8,148.65,1.34440069]
[1723080147406,10.53770684,148.79,148.65,1.34440069]
[1723080147607,10.53770684,148.79,148.57,1.34501814]
[1723080147608,6.7248,148.71,148.57,1.34501814]
[1723080147826,6.7255,148.69,148.54,1.34559937]
[1723080148031,1.68230441,148.68,148.49,1.34584353]
[1723080148217,42.49,148.71,148.49,1.34584353]
[1723080148433,45.34,148.7,148.49,1.34584353]
[1723080148619,85.89637099,148.69,148.49,1.34621679]
[1723080148806,85.89637099,148.69,148.42,42.49]
[1723080148807,6.7297,148.6,148.42,42.49]
[1723080149022,6.7306,148.58,148.43,1.34637574]
[1723080149332,45.17,148.68,148.43,1.34637574]
[1723080149333,45.0,148.68,148.47,20.0]
[1723080149625,6.53,148.69,148.54,42.49]
[1723080149820,6.53,148.69,148.55,1.34312822]
[1723080150024,6.53,148.69,148.55,21.34312822]
[1723080150324,58.0429,148.78,148.56,20.17]
[1723080150325,6.3228,148.77,148.56,20.17]
[1723080150529,6.723,148.75,148.57,66.34488406]
[1723080150830,1.68171114,148.74,148.58,1.34536891]
[1723080150999,6.3228,148.77,148.58,1.34536891]
[1723080151000,6.723,148.75,148.58,46.34536891]
[1723080151198,13.0449,148.77,148.59,20.17]
[1723080151397,13.0448,148.77,148.6,1.34500555]
[1723080151624,6.3228,148.77,148.61,1.34502681]
[1723080151828,6.3228,148.77,148.62,42.83]
[1723080152124,6.3228,148.77,148.63,21.34478302]
[1723080152629,6.7183,148.85,148.64,46.34482975]
[1723080152833,10.53837928,148.82,148.65,1.51439478]
[1723080153005,6.7205,148.8,148.65,21.34461887]
[1723080153197,8.40153836,148.8,148.65,20.0]
[1723080153400,6.7219,148.77,148.65,21.34475069]
[1723080153704,6.601,148.75,148.57,1.34503928]
[1723080153912,1.68221942,148.74,148.51,42.49]
[1723080154210,6.601,148.75,148.57,62.49]
[1723080154398,6.601,148.75,148.58,1.34498349]
[1723080155242,6.601,148.75,148.59,0.17]
[1723080155542,6.601,148.75,148.6,1.3450415]
[1723080155720,10.53837928,148.82,148.61,63.83508677]
[1723080155927,10.53837928,148.82,148.62,0.17]
[1723080156148,10.53837928,148.82,148.66,42.49]
[1723080156317,1.68057206,148.82,148.67,20.8564678]
[1723080156517,17.2566885,148.81,148.67,21.25137499]
[1723080156845,10.5364885,148.81,148.67,21.25137499]
[1723080157141,17.2564885,148.81,148.67,21.25137499]
[1723080157439,16.7864,148.93,148.68,0.17]
[1723080157629,7.3883114,148.96,148.68,21.51424056]
[1723080157834,6.716,148.9,148.7,42.49]
[1723080158047,59.2754,148.94,148.71,21.34413961]
[1723080158337,16.7854,148.94,148.72,0.17]
[1723080158545,16.7854,148.94,148.73,1.34398816]
[1723080158746,16.7854,148.94,148.73,20.0]
[1723080158747,6.7187,148.84,148.73,20.0]
[1723080158948,6.7214,148.78,148.64,42.49]
[1723080159241,6.1815,148.82,148.64,42.49]
[1723080159242,6.7219,148.77,148.65,1.34477122]
[1723080159422,1.68140266,148.76,148.6,42.49]
[1723080159626,1.68161099,148.81,148.55,1.34528879]
[1723080159824,6.7225,148.76,148.55,1.34528879]
[1723080160015,0.17,148.75,148.58,42.49]
[1723080160212,0.34,148.75,148.59,1.34511113]
[1723080160416,0.34,148.75,148.54,42.49]
[1723080160640,17.1468,148.75,148.55,1.34582451]
[1723080160843,6.725,148.7,148.55,1.34582451]
[1723080161023,6.725,148.7,148.47,26.954009]
[1723080161024,6.7271,148.66,148.52,42.49]
[1723080161220,47.02215043,148.69,148.52,42.49]
[1723080161221,0.34,148.69,148.52,42.49]
[1723080161533,8.40838447,148.68,148.53,1.34599337]
[1723080161722,0.17,148.67,148.53,1.34599337]
[1723080161923,1.68246408,148.73,148.56,42.49]
[1723080162127,1.68178525,148.77,148.57,0.60327794]
[1723080162322,1.6815768,148.76,148.58,1.34526144]
[1723080162540,6.7237,148.73,148.61,42.49]
[1723080162844,37.1812,148.8,148.61,42.49]
[1723080162845,1.68180779,148.74,148.61,42.49]
[1723080163044,6.7224,148.76,148.61,42.49]
[1723080163249,6.7224,148.76,148.62,20.0]
[1723080163467,1.68157453,148.75,148.59,42.49]
[1723080163757,1.68202271,148.74,148.54,42.49]
[1723080164048,1.68202271,148.74,148.55,42.49]
[1723080164049,6.7244,148.72,148.55,42.49]
[1723080164250,8.43981226,148.73,148.55,43.83598984]
[1723080164435,45.0,148.72,148.59,42.49]
[1723080164746,0.17,148.71,148.59,42.49]
[1723080164948,0.17,148.71,148.55,1.3458064]
[1723080165259,0.17,148.71,148.55,1.34580475]
[1723080165547,0.17,148.71,148.55,20.0]
[1723080165751,6.7272,148.65,148.48,1.34601099]
[1723080165919,45.34,148.64,148.49,1.34627455]
[1723080166118,15.0871,148.7,148.48,1.34660823]
[1723080166421,15.0871,148.7,148.56,42.49]
[1723080166625,1.6818255,148.72,148.56,42.49]
[1723080166940,26.9679,148.73,148.56,42.49]
[1723080167144,1.68251413,148.72,148.54,42.49]
[1723080167349,1.68251413,148.72,148.55,20.0]
[1723080167648,6.5879,148.73,148.55,21.34557468]
[1723080167853,1.6821544,148.72,148.55,20.0]
[1723080168044,1.6821544,148.72,148.55,21.34580415]
[1723080168226,6.5879,148.73,148.55,21.34580415]
[1723080168428,6.5879,148.73,148.59,42.49]
[1723080168652,6.5879,148.73,148.6,20.0]
[1723080169058,6.5879,148.73,148.63,42.49]
[1723080169230,15.0871,148.78,148.63,42.49]